bitfinex-derivatives/quotes_SOLF0:USTF0_20250714
["timestamp","ask_amount","ask_price","bid_price","bid_amount"]
[1752532622979,3.36,162.43,162.42,3.44]
[1752532624689,9.5149,162.43,162.42,3.44]
[1752532624985,3.36,162.44,162.42,3.44]
[1752532625381,6.1547,162.44,162.42,3.44]
[1752532625581,3.36,162.44,162.42,3.44]
[1752532626578,3.3295754,162.47,162.42,3.44]
[1752532626579,3.36,162.46,162.42,3.44]
[1752532626779,3.36,162.48,162.43,3.44]
[1752532626984,12.3038,162.52,162.41,177.74]
[1752532626985,3.36,162.46,162.41,181.24]
[1752532627180,3.36,162.46,162.42,3.44]
[1752532627486,9.5148,162.44,162.43,3.44]
[1752532628492,3.36,162.46,162.43,3.44]
[1752532630090,9.5141,162.46,162.43,3.48463318]
[1752532632994,6.1542,162.45,162.43,3.48463318]
[1752532633186,9.5142,162.45,162.43,3.48463318]
[1752532634095,6.1542,162.45,162.43,3.48463318]
[1752532634294,3.36,162.44,162.43,3.48463318]
[1752532634595,9.5146,162.44,162.43,3.48463318]
[1752532639102,3.36,162.44,162.43,3.48463318]
[1752532640390,9.5146,162.44,162.43,3.48463318]
[1752532646707,9.5043,162.45,162.43,3.48463318]
[1752532646907,3.35,162.44,162.43,3.48463318]
[1752532649614,5.14939113,162.5,162.44,3.53]
[1752532649814,3.35,162.49,162.46,3.53]
[1752532650217,9.5029,162.49,162.46,3.53]
[1752532650915,3.35,162.48,162.46,3.57259494]
[1752532654924,3.35,162.48,162.46,9.72639494]
[1752532655120,3.35,162.48,162.47,3.53]
[1752532656216,9.5031,162.48,162.47,3.53]
[1752532657723,3.35,162.48,162.47,3.53]
[1752532658922,3.35,162.48,162.47,5.66321381]
[1752532660825,9.5031,162.48,162.47,5.66321381]
[1752532661123,3.35,162.48,162.47,5.66321381]
[1752532664528,2.13321381,162.49,162.46,0.04259494]
[1752532664827,5.48321381,162.47,162.46,0.04259494]
[1752532666119,11.63661381,162.47,162.46,0.04259494]
[1752532667027,12.83872964,162.47,162.46,0.04259494]
[1752532667327,9.48872964,162.47,162.46,0.04259494]
[1752532668526,6.1534,162.47,162.46,0.04259494]
[1752532669525,5.14939113,162.5,162.46,0.04259494]
[1752532669731,5.14939113,162.51,162.46,0.04259494]
[1752532669921,6.1526,162.5,162.46,6.19619494]
[1752532670126,5.14939113,162.51,162.46,6.1536]
[1752532670529,6.1525,162.5,162.46,6.19285358]
[1752532671129,6.1527,162.49,162.46,6.19285358]
[1752532671326,3.35,162.48,162.47,3.53]
[1752532674833,9.5031,162.48,162.47,3.53]
[1752532679132,3.35,162.48,162.47,3.53]
[1752532680436,9.5031,162.48,162.47,3.53]
[1752532681539,6.1534,162.47,162.46,0.03925358]
[1752532681740,9.6034,162.47,162.46,0.03925358]
[1752532682040,9.6034,162.47,162.46,3.56925358]
[1752532690137,3.45,162.47,162.46,3.56925358]
[1752532690339,9.6032,162.48,162.46,3.56925358]
[1752532690747,6.1532,162.48,162.46,3.56925358]
[1752532691040,9.6034,162.47,162.46,3.56925358]
[1752532701149,3.45,162.47,162.46,3.56925358]
[1752532702150,9.6034,162.47,162.46,3.56925358]
[1752532702853,9.6034,162.47,162.46,0.03925358]
[1752532705356,11.73702366,162.47,162.46,0.03925358]
[1752532713860,11.73702366,162.47,162.46,3.48925358]
[1752532716067,9.6034,162.47,162.46,3.48925358]
[1752532721467,3.45,162.47,162.46,3.48925358]
[1752532721667,14.94944288,162.48,162.46,5.62287724]
[1752532721867,9.7632,162.48,162.47,3.45]
[1752532725473,3.61,162.48,162.47,5.58362366]
[1752532726380,9.7631,162.48,162.47,5.58362366]
[1752532727177,9.7631,162.48,162.47,3.45]
[1752532728475,6.1531,162.48,162.47,3.45]
[1752532729881,9.7631,162.48,162.47,5.58362366]
[1752532732183,9.7631,162.48,162.47,3.45]
[1752532734789,6.1531,162.48,162.46,2.17287724]
[1752532734985,6.1528,162.49,162.47,2.13362366]
[1752532735885,6.1531,162.48,162.46,2.17287724]
[1752532737987,6.1531,162.48,162.46,0.03925358]
[1752532738188,6.1534,162.47,162.46,2.17287724]
[1752532741092,6.1532,162.48,162.46,2.17287724]
[1752532744891,6.1534,162.47,162.46,0.03925358]
[1752532745099,2.13362366,162.47,162.43,2.13362366]
[1752532745400,2.13435393,162.47,162.42,2.13435393]
[1752532745699,6.154,162.46,162.42,2.13435393]
[1752532746092,6.154,162.46,162.42,8.28945393]
[1752532746500,6.154,162.46,162.43,2.13435393]
[1752532746993,6.154,162.46,162.43,2.13414728]
[1752532749300,6.154,162.46,162.44,2.13414728]
[1752532749503,2.13414728,162.48,162.44,2.13414728]
[1752532749800,0.03999684,162.49,162.46,2.13414728]
[1752532750202,6.1533,162.48,162.47,2.13414728]
[1752532750501,0.03999684,162.49,162.47,2.13414728]
[1752532750703,10.7014829,162.48,162.47,2.13414728]
[1752532751104,10.7014829,162.48,162.45,6.154]
[1752532751402,4.5483829,162.47,162.46,2.13414728]
[1752532756108,4.5483829,162.47,162.46,8.28794728]
[1752532757508,4.5483829,162.47,162.46,2.13414728]
[1752532758206,4.5483829,162.47,162.46,8.28794728]
[1752532758410,4.5483829,162.47,162.46,2.13414728]
[1752532759211,10.7017829,162.47,162.46,2.13414728]
[1752532762408,4.5483829,162.47,162.46,2.13414728]
[1752532762809,4.5483829,162.47,162.46,8.28794728]
[1752532764014,0.03999684,162.49,162.48,6.1531]
[1752532764311,0.03999684,162.49,162.48,8.28724728]
[1752532764512,6.88347988,162.53,162.48,2.13414728]
[1752532764712,6.88347988,162.54,162.52,8.28544728]
[1752532764917,13.03407988,162.55,162.53,2.13414728]
[1752532765213,13.03407988,162.55,162.54,2.13414728]
[1752532766205,6.1506,162.55,162.54,2.13414728]
[1752532766812,6.151,162.54,162.53,2.13414728]
[1752532775219,89.06696538,162.57,162.44,538.53478035]
[1752532775417,2.13414728,162.53,162.44,715.97478035]
[1752532775625,2.13414728,162.54,162.5,2.13414728]
[1752532776124,6.1517,162.52,162.5,2.13414728]
[1752532776523,6.1519,162.51,162.5,2.13414728]
[1752532777624,6.1517,162.52,162.5,2.13414728]
[1752532779929,6.1519,162.51,162.5,2.13414728]
[1752532782128,6.1517,162.52,162.5,2.13414728]
[1752532783733,6.1515,162.52,162.51,2.13414728]
[1752532790743,6.1513,162.53,162.51,8.28594728]
[1752532790944,6.1513,162.53,162.52,2.13414728]
[1752532792447,6.1507,162.55,162.52,8.28564728]
[1752532792745,6.1507,162.55,162.54,2.13414728]
[1752532801252,6.1508,162.54,162.53,2.13414728]
[1752532801447,6.1508,162.54,162.53,2.17330137]
[1752532802053,6.1508,162.54,162.53,0.03915409]
[1752532802751,6.1508,162.54,162.53,2.17330137]
[1752532803350,6.1508,162.54,162.53,0.03915409]
[1752532803548,6.1508,162.54,162.53,2.17330137]
[1752532807565,91.20111266,162.57,162.53,2.17330137]
[1752532807760,91.20111266,162.57,162.53,0.03915409]
[1752532808062,6.1505,162.55,162.53,2.17330137]
[1752532808664,91.20111266,162.57,162.53,2.17330137]
[1752532808665,6.1508,162.54,162.53,0.03915409]
[1752532809561,6.1506,162.55,162.53,0.03915409]
[1752532811165,6.1508,162.54,162.53,0.03915409]
[1752532811365,8.28494728,162.54,162.53,0.03915409]
[1752532812063,8.28337358,162.54,162.53,0.03915409]
[1752532814968,8.28334533,162.54,162.53,0.03915409]
[1752532816567,8.28294533,162.55,162.53,0.03915409]
[1752532816860,2.13254533,162.57,162.53,2.17169942]
[1752532817059,8.28254533,162.57,162.53,8.32269942]
[1752532817766,2.13254533,162.57,162.53,8.32269942]
[1752532817969,2.13254533,162.57,162.54,6.1507]
[1752532817970,6.1498,162.57,162.54,6.1507]
[1752532818268,6.1498,162.57,162.54,8.28324533]
[1752532818772,6.1494,162.58,162.55,2.13254533]
[1752532819071,2.13254533,162.59,162.55,2.13254533]
[1752532819267,2.13254533,162.59,162.54,2.13254533]
[1752532819463,6.1499,162.57,162.54,2.13254533]
[1752532819774,2.13254533,162.58,162.54,2.13254533]
[1752532819968,6.88347988,162.6,162.54,2.13254533]
[1752532820168,6.1497,162.57,162.54,2.13254533]
[1752532821069,6.1501,162.56,162.54,2.13254533]
[1752532826475,6.88347988,162.6,162.55,2.13254533]
[1752532826476,5.17410453,162.59,162.55,2.13254533]
[1752532826871,7.30664986,162.6,162.55,2.13254533]
[1752532827169,6.1499,162.57,162.55,2.13254533]
[1752532829178,3.55,162.56,162.55,2.13254533]
[1752532829573,9.7,162.56,162.55,2.13254533]
[1752532829879,6.15,162.56,162.55,3.49]
[1752532830377,9.7,162.56,162.55,3.49]
[1752532831378,9.7004,162.55,162.54,5.62254533]
[1752532831677,3.55,162.54,162.53,0.03915409]
[1752532831878,5.68254533,162.54,162.53,0.03915409]
[1752532832078,11.83334533,162.54,162.53,0.03915409]
[1752532835288,2.13254533,162.54,162.45,177.3]
[1752532835586,3.55,162.48,162.47,3.49]
[1752532837089,9.7031,162.48,162.47,3.49]
[1752532837988,3.33402583,162.48,162.44,3.49]
[1752532838186,3.55,162.47,162.42,3.49]
[1752532838792,6.1544,162.45,162.42,3.49]
[1752532839287,3.55,162.42,162.39,177.32]
[1752532839483,3.55,162.42,162.39,180.81]
[1752532839688,3.55,162.42,162.4,3.49]
[1752532840090,3.33402583,162.46,162.4,3.49]
[1752532840285,3.55,162.45,162.4,3.49]
[1752532841098,6.1548,162.44,162.4,9.6459]
[1752532841296,6.1548,162.44,162.41,3.49]
[1752532841489,3.55,162.42,162.41,3.49]
[1752532843287,3.55,162.42,162.41,9.6457]
[1752532843492,3.55,162.46,162.42,3.49]
[1752532843692,3.33402583,162.49,162.42,6.82402583]
[1752532843896,6.1529,162.49,162.43,3.49]
[1752532844196,3.55,162.5,162.43,3.49]
[1752532844591,3.55,162.48,162.46,3.49]
[1752532845287,6.1531,162.48,162.46,3.49]
[1752532845796,3.55,162.47,162.46,3.49]
[1752532846197,9.7031,162.48,162.46,3.49]
[1752532846694,3.55,162.47,162.46,3.49]
[1752532846993,177.32,162.53,162.42,3.33402583]
[1752532847198,8.50813036,162.55,162.48,3.49]
[1752532847395,3.33402583,162.54,162.48,3.49]
[1752532848095,6.88402583,162.54,162.48,3.49]
[1752532848295,3.55,162.53,162.48,3.49]
[1752532848504,3.55,162.49,162.47,3.33402583]
[1752532848899,3.55,162.49,162.46,9.6437]
[1752532849199,3.55,162.49,162.47,3.49]
[1752532850094,6.1527,162.49,162.47,3.49]
[1752532850402,3.55,162.48,162.47,3.49]
[1752532851403,3.55,162.52,162.47,3.49]
[1752532852002,6.1527,162.49,162.47,3.49]
[1752532852204,3.55,162.48,162.45,6.154]
[1752532852402,3.55,162.48,162.47,3.49]
[1752532854399,3.55,162.51,162.47,3.49]
[1752532856106,6.1529,162.49,162.47,3.49]
[1752532856306,9.7029,162.49,162.47,3.49]
[1752532857812,9.7031,162.48,162.45,6.1541]
[1752532858205,3.55,162.47,162.46,3.46]
[1752532858406,6.1528,162.49,162.46,3.46]
[1752532858607,3.42,162.49,162.46,3.46]
[1752532859209,3.42,162.48,162.46,3.46]
[1752532860612,3.42,162.47,162.46,3.46]
[1752532861202,9.5731,162.48,162.46,3.46]
[1752532863609,6.1531,162.48,162.46,3.46]
[1752532863814,9.5728,162.49,162.47,3.46]
[1752532864909,92.35856544,162.56,162.47,3.46]
[1752532865214,3.42,162.53,162.48,3.33402583]
[1752532865412,3.42,162.53,162.49,3.46]
[1752532865714,0.04231956,162.52,162.49,3.46]
[1752532866414,6.1522,162.51,162.49,3.46]
[1752532866615,3.42,162.5,162.49,3.46]
[1752532868209,9.5723,162.5,162.49,3.46]
[1752532868917,3.42,162.5,162.49,3.46]
[1752532872219,3.42,162.5,162.49,9.6127]
[1752532872423,9.5721,162.51,162.49,9.6127]
[1752532872624,9.5721,162.51,162.5,3.46]
[1752532872820,3.42,162.51,162.5,3.46]
[1752532875427,3.42,162.51,162.5,9.6123]
[1752532875626,3.46231956,162.52,162.51,3.46]
[1752532876126,9.61381956,162.52,162.51,3.46]
[1752532876826,3.46231956,162.52,162.51,3.46]
[1752532878322,3.46231956,162.52,162.51,9.6119]
[1752532878526,0.04231956,162.52,162.51,9.6119]
[1752532885236,3.46231956,162.52,162.51,9.6119]
[1752532886534,0.04231956,162.52,162.51,9.6119]
[1752532887033,3.46231956,162.52,162.51,9.6119]
[1752532888134,0.04231956,162.52,162.51,9.6119]
[1752532889035,3.73231956,162.52,162.51,9.6119]
[1752532892440,0.04231956,162.52,162.51,12.94592583]
[1752532896744,3.69,162.57,162.56,3.64]
[1752532897339,3.69,162.57,162.56,9.79]
[1752532897645,3.69,162.57,162.56,3.64]
[1752532897844,3.69,162.57,162.56,5.77099166]
[1752532898845,3.69,162.57,162.56,11.92099166]
[1752532899048,3.69,162.57,162.56,3.64]
[1752532899245,5.17410453,162.6,162.56,3.64]
[1752532899451,3.69,162.61,162.57,3.64]
[1752532899642,3.69,162.61,162.59,3.64]
[1752532899842,3.69,162.6,162.59,3.64]
[1752532903546,3.69,162.6,162.59,9.7889]
[1752532904246,3.69,162.62,162.61,3.64]
[1752532905154,3.69,162.62,162.61,9.7881]
[1752532906549,9.8371,162.64,162.63,3.64]
[1752532914353,3.69,162.64,162.63,3.64]
[1752532914959,9.837,162.64,162.63,3.64]
[1752532917454,3.3292478,162.68,162.61,3.64]
[1752532917652,3.69,162.62,162.58,3.64]
[1752532918052,9.8379,162.62,162.58,3.64]
[1752532918356,9.8379,162.62,162.59,6.1487]
[1752532918558,3.64,162.61,162.6,3.45]
[1752532919559,9.7881,162.61,162.6,3.45]
[1752532923063,9.7881,162.61,162.6,5.57974624]
[1752532923761,9.7881,162.61,162.6,3.45]
[1752532923963,9.789,162.59,162.53,3.45]
[1752532924164,3.64,162.59,162.58,5.57974624]
[1752532924558,3.64,162.59,162.58,11.72904624]
[1752532925264,3.64,162.6,162.59,3.45]
[1752532925764,3.64,162.6,162.59,5.57974624]
[1752532926367,9.7883,162.61,162.6,3.45]
[1752532938169,3.64,162.61,162.6,9.5985]
[1752532938376,9.7879,162.62,162.61,3.45]
[1752532943277,3.64,162.62,162.61,2.12974624]
[1752532943578,3.64,162.62,162.61,5.57974624]
[1752532943776,3.64,162.62,162.61,3.45]
[1752532944579,3.64,162.62,162.61,5.57974624]
[1752532947478,3.64,162.62,162.61,3.45]
[1752532951484,3.47,162.64,162.62,3.6]
[1752532951685,9.6172,162.64,162.62,5.72974624]
[1752532951880,6.1472,162.64,162.63,3.6]
[1752532952084,11.32943862,162.65,162.63,3.6]
[1752532952484,3.47,162.64,162.63,5.72974624]
[1752532953884,9.6168,162.65,162.64,3.6]
[1752532955586,5.18263862,162.7,162.65,3.6]
[1752532955886,3.47,162.71,162.7,3.6]
[1752532956085,3.47,162.71,162.7,5.72974624]
[1752532957179,9.6142,162.72,162.7,5.72974624]
[1752532957385,9.6142,162.72,162.71,5.72974624]
[1752532957889,3.47,162.71,162.69,5.72974624]
[1752532958986,9.6147,162.7,162.69,3.6]
[1752532960588,9.6147,162.7,162.67,3.32394287]
[1752532960589,9.6155,162.69,162.68,3.6]
[1752532960787,3.47,162.74,162.68,3.6]
[1752532960992,3.47,162.73,162.68,3.6]
[1752532961485,9.6149,162.7,162.68,3.6]
[1752532961687,3.47,162.75,162.68,3.6]
[1752532961888,3.47,162.73,162.7,3.6]
[1752532962387,6.1443,162.72,162.7,3.6]
[1752532962690,3.47,162.71,162.7,3.6]
[1752532963689,9.6144,162.71,162.7,3.6]
[1752532970891,3.47,162.74,162.67,3.32394287]
[1752532971090,3.47,162.72,162.65,9.47044287]
[1752532971288,3.47,162.67,162.66,3.6]
[1752532972099,6.1455,162.68,162.66,3.6]
[1752532972298,9.6155,162.68,162.67,3.6]
[1752532973097,3.47,162.68,162.67,3.6]
[1752532973394,6.1452,162.69,162.67,3.6]
[1752532973395,3.47,162.69,162.67,9.7458]
[1752532973596,3.47,162.69,162.68,3.6]
[1752532974497,9.6151,162.7,162.68,3.6]
[1752532974798,9.6151,162.7,162.68,9.7455]
[1752532974998,9.6144,162.71,162.69,3.6]
[1752532975199,3.47,162.71,162.69,3.6]
[1752532976000,9.6145,162.71,162.69,3.6]
[1752532976405,3.47,162.7,162.69,3.6]
[1752532976809,9.6147,162.7,162.69,3.6]
[1752532978609,3.47,162.7,162.69,9.7451]
[1752532979009,3.47,162.7,162.69,3.6]
[1752532979708,3.57,162.7,162.65,3.32394287]
[1752532979901,3.57,162.7,162.65,6.1464]
[1752532980106,3.57,162.7,162.63,3.32394287]
[1752532980302,3.57,162.64,162.62,531.12]
[1752532980506,3.57,162.64,162.59,6.1488]
[1752532980809,3.57,162.63,162.58,3.62]
[1752532981012,3.57,162.63,162.62,3.62]
[1752532981311,9.7174,162.63,162.62,3.62]
[1752532981912,6.148,162.62,162.61,3.62]
[1752532982110,9.718,162.62,162.61,3.62]
[1752532984513,3.57,162.6,162.58,3.62]
[1752532984713,3.57,162.63,162.59,3.62]
[1752532985009,3.32782696,162.64,162.57,6.1494]
[1752532985216,3.57,162.61,162.6,3.62]
[1752532985614,9.7185,162.61,162.6,3.62]
[1752532987311,3.57,162.61,162.6,3.62]
[1752532995015,9.7181,162.61,162.6,3.62]
[1752532997322,3.57,162.58,162.57,177.0]
[1752532997914,3.57,162.58,162.57,180.62]
[1752532998115,3.57,162.59,162.58,3.62]
[1752533000017,3.32782696,162.63,162.59,3.62]
[1752533000221,3.57,162.6,162.59,3.62]
[1752533001123,9.7185,162.6,162.59,3.62]
[1752533006230,3.57,162.6,162.59,3.62]
[1752533007932,3.57,162.64,162.59,6.94782696]
[1752533008229,3.57,162.64,162.61,3.62]
[1752533008527,9.7278,162.62,162.61,3.62]
[1752533009325,3.58,162.61,162.6,180.54]
[1752533013835,9.7281,162.61,162.6,180.54]
[1752533016940,9.7281,162.61,162.6,182.66971966]
[1752533017134,3.58,162.61,162.6,182.66971966]
[1752533018736,3.58,162.61,162.6,188.81821966]
[1752533018939,3.58,162.61,162.6,182.66971966]
[1752533019835,3.58,162.61,162.6,180.54]
[1752533020034,3.58,162.61,162.6,182.66971966]
[1752533020338,9.7281,162.61,162.6,182.66971966]
[1752533020642,5.70971966,162.61,162.58,180.52]
[1752533020837,9.7285,162.6,162.59,3.52]
[1752533027141,3.58,162.6,162.59,3.52]
[1752533027845,9.7285,162.6,162.59,3.52]
[1752533028036,3.58,162.6,162.59,9.6689]
[1752533028239,3.58,162.6,162.59,3.52]
[1752533030941,3.58,162.6,162.59,9.6689]
[1752533031243,3.58,162.62,162.59,5.64971966]
[1752533031442,3.58,162.62,162.58,177.0]
[1752533031443,3.58,162.62,162.61,8.27771966]
[1752533031642,3.58,162.62,162.61,188.77771966]
[1752533032039,3.58,162.62,162.61,182.62971966]
[1752533032739,3.58,162.62,162.61,180.5]
[1752533036844,9.7278,162.62,162.61,180.5]
[1752533041343,3.58,162.62,162.61,180.5]
[1752533042544,3.34,162.64,162.62,3.47]
[1752533042743,3.34,162.64,162.63,5.59971966]
[1752533043548,9.487,162.64,162.63,5.59971966]
[1752533044046,3.34,162.64,162.63,5.59971966]
[1752533044549,9.4869,162.65,162.63,2.12971966]
[1752533044749,9.4869,162.65,162.64,5.59971966]
[1752533044949,9.4869,162.65,162.64,3.47]
[1752533052557,6.1464,162.66,162.64,5.59971966]
[1752533052757,9.4864,162.66,162.65,3.47]
[1752533055961,3.34,162.66,162.65,3.47]
[1752533056664,9.4863,162.66,162.65,3.47]
[1752533058063,6.1459,162.67,162.65,3.47]
[1752533058263,3.34,162.68,162.66,2.12971966]
[1752533058566,3.34,162.68,162.67,3.47]
[1752533058765,9.4857,162.68,162.67,5.59971966]
[1752533061665,9.4857,162.68,162.67,3.47]
[1752533063268,9.4863,162.66,162.65,5.59971966]
[1752533063465,9.4863,162.66,162.65,3.47]
[1752533068379,9.4863,162.66,162.65,5.59971966]
[1752533072482,3.34,162.66,162.65,5.59971966]
[1752533074784,9.4863,162.66,162.65,5.59971966]
[1752533076985,9.6874,162.63,162.57,6.86418845]
[1752533077187,3.54,162.62,162.61,2.12971966]
[1752533077488,3.54,162.62,162.61,5.67971966]
[1752533077896,9.6878,162.62,162.61,5.67971966]
[1752533078195,3.54,162.62,162.61,5.67971966]
[1752533082396,3.54,162.62,162.61,3.55]
[1752533083092,3.54,162.62,162.61,9.6981]
[1752533083392,9.6877,162.63,162.62,3.55]
[1752533084296,3.54,162.63,162.62,3.55]
[1752533086296,3.54,162.63,162.62,9.6978]
[1752533086597,3.54,162.63,162.62,11.82751966]
[1752533091098,3.54,162.63,162.62,5.67971966]
[1752533091797,6.1472,162.64,162.63,3.55]
[1752533091998,6.1472,162.64,162.63,5.67971966]
[1752533092198,9.6872,162.64,162.63,5.67971966]
[1752533094796,6.1467,162.65,162.63,11.82711966]
[1752533094998,6.1467,162.65,162.64,5.67971966]
[1752533095300,9.6867,162.65,162.64,3.55]
[1752533098300,9.6867,162.65,162.64,5.67971966]
[1752533101301,9.6867,162.65,162.64,3.55]
[1752533103603,8.71140347,162.69,162.64,3.55]
[1752533103804,5.15140347,162.69,162.68,2.12971966]
[1752533103999,5.15140347,162.74,162.69,3.35]
[1752533104203,3.56,162.72,162.71,2.12695743]
[1752533104403,3.56,162.72,162.71,5.47695743]
[1752533104906,9.704,162.72,162.71,3.35]
[1752533105104,3.56,162.72,162.69,3.35]
[1752533105306,9.7041,162.72,162.7,2.12695743]
[1752533105503,3.56,162.71,162.7,2.12695743]
[1752533106006,3.56,162.71,162.68,2.12695743]
[1752533106305,3.56,162.71,162.68,5.47695743]
[1752533106902,3.56,162.69,162.68,3.35]
[1752533107404,3.56,162.69,162.68,5.47695743]
[1752533110007,9.7051,162.69,162.68,5.47695743]
[1752533111710,3.56,162.69,162.68,5.47695743]
[1752533114914,3.56,162.69,162.68,11.62245743]
[1752533115915,3.56,162.69,162.68,5.47695743]
[1752533116116,3.56,162.69,162.67,2.12695743]
[1752533116512,3.56,162.69,162.68,2.12695743]
[1752533116912,3.56,162.69,162.68,5.47695743]
[1752533117913,3.56,162.69,162.68,11.62245743]
[1752533118611,3.56,162.71,162.69,6.1451]
[1752533118811,3.56,162.71,162.7,5.47695743]
[1752533119717,3.56,162.74,162.71,3.35]
[1752533120016,3.56,162.74,162.73,5.47695743]
[1752533122312,3.56,162.74,162.72,2.12695743]
[1752533122518,3.56,162.74,162.72,3.35]
[1752533123019,3.56,162.73,162.72,3.35]
[1752533124021,9.7036,162.73,162.72,3.35]
[1752533124218,6.1436,162.73,162.72,3.35]
[1752533124420,9.7036,162.73,162.72,3.35]
[1752533128822,3.56,162.73,162.7,3.5]
[1752533129324,89.85243937,162.76,162.7,3.5]
[1752533129325,3.54,162.71,162.7,3.5]
[1752533129522,9.684,162.72,162.7,3.5]
[1752533129723,9.684,162.72,162.7,9.6447]
[1752533129924,9.684,162.72,162.71,3.5]
[1752533134123,6.144,162.72,162.71,3.5]
[1752533134624,9.684,162.72,162.71,3.5]
[1752533142932,9.684,162.72,162.71,5.6267598]
[1752533143132,9.684,162.72,162.71,2.1267598]
[1752533143328,9.6838,162.73,162.72,3.5]
[1752533143633,3.54,162.73,162.72,5.6267598]
[1752533144332,3.54,162.73,162.72,11.7707598]
[1752533145335,9.6836,162.73,162.72,3.5]
[1752533145641,9.6836,162.73,162.72,5.6267598]
[1752533148037,3.54,162.73,162.72,11.7707598]
[1752533148436,3.54,162.76,162.73,3.5]
[1752533148633,6.1431,162.75,162.73,3.5]
[1752533148838,3.54,162.74,162.73,3.5]
[1752533149347,3.54,162.74,162.73,5.6267598]
[1752533151046,9.6832,162.74,162.73,3.5]
[1752533151242,3.54,162.74,162.73,3.5]
[1752533154648,9.6832,162.74,162.73,3.5]
[1752533154849,6.1432,162.74,162.72,3.5]
[1752533155052,3.54,162.76,162.72,3.5]
[1752533155252,6.1434,162.74,162.72,3.5]
[1752533155451,3.54,162.73,162.72,3.5]
[1752533156143,3.54,162.73,162.72,9.644]
[1752533156552,3.54,162.73,162.72,3.5]
[1752533157150,3.54,162.73,162.72,9.644]
[1752533158953,3.54,162.73,162.72,3.5]
[1752533164055,3.54,162.73,162.72,9.644]
[1752533165354,3.41,162.74,162.73,3.53]
[1752533167360,9.5532,162.74,162.73,3.53]
[1752533169760,3.41,162.74,162.73,3.53]
[1752533172959,3.41,162.74,162.73,5.65628499]
[1752533173964,3.41,162.74,162.73,3.53]
[1752533174165,3.41,162.74,162.73,5.65628499]
[1752533179364,3.41,162.74,162.73,11.79988499]
[1752533179966,5.17974354,162.77,162.75,3.53]
[1752533180271,6.87429735,162.79,162.77,3.53]
[1752533180272,3.41,162.79,162.77,3.53]
[1752533180463,3.41,162.79,162.78,5.65628499]
[1752533180662,3.41,162.79,162.78,3.53]
[1752533180865,3.41,162.79,162.78,5.65628499]
[1752533181167,9.5513,162.79,162.78,5.65628499]
[1752533181360,3.41,162.79,162.78,5.65628499]
[1752533182768,9.5513,162.79,162.78,3.53]
[1752533182966,9.5513,162.79,162.78,5.65628499]
[1752533185274,9.5513,162.79,162.78,3.53]
[1752533185573,9.5513,162.79,162.78,5.65628499]
[1752533186172,9.5513,162.79,162.78,3.53]
[1752533186368,6.1417,162.78,162.77,0.04394895]
[1752533186575,9.5517,162.78,162.77,0.04394895]
[1752533186771,11.67798499,162.78,162.77,0.04394895]
[1752533193473,9.5517,162.78,162.77,0.04394895]
[1752533193675,11.67798499,162.78,162.77,0.04394895]
[1752533196978,3.41,162.77,162.73,3.39]
[1752533197174,3.41,162.75,162.73,3.39]
[1752533198180,6.1432,162.74,162.73,3.39]
[1752533198380,9.5532,162.74,162.73,3.39]